Cogmind - Beta 16.1 @@@ ROGUE MODE // 2026.04.25 @ 21:36:52 Player: mephiles96 Result: Destroyed by OO-CBK(R) with Subdweller Machine Gun Performance ------------- Evolutions (0) 0 Regions Visited (2) 400 Robots Destroyed (18) 90 Value Destroyed (352) 352 Prototype IDs (0) 0 Alien Tech Used (0) 0 Bonus (0) 0 TOTAL SCORE: 842 Bonus ------- None Cogmind --------- Core Integrity 0/250 Matter 102/300 Energy 100/100 System Corruption 0% Temperature Cool (0) Movement Core (250) Ox4 Location -10/Subcaves Parts ------- > --- POWER (1) -------- (None) > --- PROPULSION (2) --- (None) > --- UTILITY (2) ------ Medium Storage Unit Seismic Detector > --- WEAPON (2) ------- Light Assault Rifle Ripper > --- INVENTORY (10) --- Light Treads Structural Scanner Sensor Array Signal Interpreter Medium Armor Plating Medium Armor Plating Mining Laser Peak State ------------ > --- POWER ------------ Ion Engine > --- PROPULSION ------- Light Treads Light Treads > --- UTILITY ---------- Medium Storage Unit Seismic Detector > --- WEAPON ----------- Assault Rifle Light Assault Rifle > --- INVENTORY -------- Ion Engine Light Treads Light Treads Aluminum Leg Aluminum Leg Wheel Compact Wheel Medium Laser Grenade Launcher Mining Laser [Rating: 8] Favorites ----------- Power Ion Engine Engine Ion Engine Propulsion Light Treads Treads Light Treads Leg Aluminum Leg Utility Seismic Detector Device Seismic Detector Storage Medium Storage Unit Weapon Assault Rifle Energy Gun Medium Laser Ballistic Gun Assault Rifle Launcher Grenade Launcher Special Weapon Mining Laser Slashing Weapon Ripper Build | -11 -10 -10 ------- Run | Yrd Mat Sub Slots Evolved . | . . . Power . | . . . Propulsion . | . . . Utility . | . . . Weapon . | . . . Parts Attached 14 | 4 6 4 Power 1 | . . 1 Engine 1 | . . 1 Core . | . . . Reactor . | . . . Propulsion 4 | 2 1 1 Treads 4 | 2 1 1 Leg . | . . . Wheel . | . . . Hover . | . . . Flight . | . . . Utility 3 | 1 2 . Device 2 | 1 1 . Storage 1 | . 1 . Processor . | . . . Hackware . | . . . Protection . | . . . Artifact . | . . . Weapon 6 | 1 3 2 Energy Gun . | . . . Energy Cannon . | . . . Ballistic Gun 2 | 1 1 . Ballistic Cannon . | . . . Launcher 2 | . 1 1 Special Weapon 1 | . 1 . Impact Weapon . | . . . Slashing Weapon 1 | . . 1 Piercing Weapon . | . . . Special Melee Weapon . | . . . Unidentified Prototypes . | . . . Parts Lost 7 | . . 7 Power 2 | . . 2 Propulsion 3 | . . 3 Utility . | . . . Weapon 2 | . . 2 Highest Loss Streak 5 | . . 5 To Critical Strikes . | . . . Average Backups 9 | 6 9 9 Power . | 1 1 . Propulsion 2 | 4 3 1 Utility 2 | . 1 5 Weapon 2 | 1 2 1 Tool/Special . | . . . Unused Backups 15 | 3 5 7 Power 2 | 1 . 1 Propulsion 5 | . 4 1 Utility 6 | 1 . 5 Weapon 2 | 1 1 . Tool/Special . | . . . Average Slot Usage (%) 98 | . 100 96 Engine 13 | . 14 13 Treads 27 | . 28 25 Device 14 | . 14 14 Storage 14 | . 14 14 Ballistic Gun 25 | . 24 25 Launcher 1 | . 1 1 Special Weapon 1 | . 2 . Peak Build Rating 8 | 7 8 8 Average Rating 7 | 6 7 7 On Entrance 7 | 6 7 8 Avg Prop Armor Cover (%) . | . . . Naked Turns . | . . . Heaviest Build 21 | 14 21 21 Greatest Support 40 | 40 40 40 Greatest Overweight (x) 6 | . . 6 Average Overweight (x) . | . . . Largest Inventory Capacity 10 | 8 10 10 Average Capacity 9 | 8 9 10 Most Carried 10 | 7 10 10 Average Carried 9 | 6 9 9 Final Capacity 10 | 8 10 10 Final Carried 10 | 7 10 7 Class Distribution -------------------- 100% | Mutant Dominant Class ---------------- Mutant | -10/Materials Mutant | -10/Subcaves Resources | -11 -10 -10 ----------- Run | Yrd Mat Sub Matter Collected 506 | 276 165 65 Remotely . | . . . Salvage Created 381 | 109 200 72 Parts 44 | 7 29 8 Haulers Intercepted . | . . . Recyclers Shooed 1 | . 1 . Parts Field Recycled . | . . . Retrieved Matter . | . . . Parts Self-Destructed . | . . . Prevented . | . . . Parts Restored . | . . . Kills | -11 -10 -10 ------- Run | Yrd Mat Sub Combat Hostiles Destroyed 12 | . 9 3 Guns 5 | . 3 2 AOE 7 | . 6 1 Classes Destroyed 7 | 2 3 2 Builder 2 | . 2 . Tunneler 3 | 2 1 . Recycler 1 | 1 . . Swarmer 6 | . 6 . Grunt 3 | . 3 . Artisan 1 | . . 1 Subdweller 3 | . . 3 Best Kill Streak 4 | 2 4 1 Combat Bots Only 3 | . 3 1 Max Kills in Single Turn 3 | 1 3 1 Gunslinging . | . . . Exploded 3 | . 3 1 Melee . | . . . Uniques/NPCs Destroyed . | . . . Combat | -11 -10 -10 -------- Run | Yrd Mat Sub Hostile Shots Fired 82 | . 27 55 Missed 19 | . 6 13 Hits 63 | . 21 42 Projectile 63 | . 21 42 Damage Taken 1146 | . 228 918 Core 263 | . 24 239 Absorbed by Shields . | . . . Core Remaining (%) 100 | 100 . . Volleys Fired 84 | 9 49 26 Largest 2 | 2 2 2 Hottest 100 | 40 100 50 Shots Fired 122 | 18 62 42 Gun 99 | 18 50 31 Cannon . | . . . Launcher 18 | . 7 11 Special 5 | . 5 . Kinetic 99 | 18 50 31 Thermal 5 | . 5 . Explosive 18 | . 7 11 Electromagnetic . | . . . Robot Hit Streak 18 | 6 12 18 Robot Miss Streak 3 | 2 3 2 Penetration Max . | . . . Secondary Targets 1 | . 1 . Max Gunslinging Chain 1 | . 1 . Shots Hit Robots 65 | 11 32 22 Core Hits 32 | 3 21 8 Critical Kills . | . . . Critical Parts Destroyed . | . . . Critical Strikes . | . . . Melee Attacks . | . . . Impact . | . . . Slashing . | . . . Piercing . | . . . Sneak Attacks . | . . . Combat Hostiles . | . . . Follow-up Attacks . | . . . Damage Inflicted 1282 | 119 663 500 Guns 602 | 119 276 207 Cannons . | . . . Explosions 680 | . 387 293 Melee . | . . . Ramming . | . . . Kinetic 602 | 119 276 207 Thermal . | . . . Explosive 680 | . 387 293 Electromagnetic . | . . . Impact . | . . . Slashing . | . . . Piercing . | . . . Highest Corruption . | . . . Average Corruption . | . . . Corruption Purged . | . . . Corruption Blocked . | . . . Overload Shots . | . . . Overflow Damage . | . . . Projectiles . | . . . Explosions . | . . . Melee . | . . . Knockbacks . | . . . Impact . | . . . Kinetic . | . . . Secondary . | . . . Self-Inflicted Damage 53 | . 24 29 Shots 3 | . 1 2 Rammed . | . . . Targets Rammed . | . . . Kicked . | . . . Crushed . | . . . Highest Temperature 40 | . 40 . Average Temperature 12 | . 12 . Received Heat Transfer 195 | . 78 117 Siege Activations . | . . . Martial Activations . | . . . Shielding Activations . | . . . Robots Disrupted . | . . . Combat Hostiles . | . . . Robots Corrupted . | . . . Combat Hostiles . | . . . Parts Fried . | . . . Impact Corruptions . | . . . Robots Melted . | . . . Combat Hostiles . | . . . Parts Melted 2 | . . 2 Heat Transferred . | . . . Parts Sabotaged . | . . . Parts Stolen . | . . . Parts Stripped . | . . . Power Chain Reactions . | . . . Alert | -11 -10 -10 ------- Run | Yrd Mat Sub Maximum Alert Level . | . . . Low Security (%) 100 | 100 100 . Level 1 . | . . . Level 2 . | . . . Level 3 . | . . . Level 4 . | . . . Level 5 . | . . . High Security . | . . . Max Security . | . . . Peak Influence 105 | 5 105 . Initial . | . . . Average 38 | 2 42 . Influence Increases 304 | 15 289 . Destroy 0b10 Robot/C 180 | . 180 . Destroy 0b10 Robot/NC 30 | 15 15 . Destroy Leader 30 | . 30 . Successful Hack 6 | . 6 . Disable Machine 30 | . 30 . Destroy Structure 28 | . 28 . Influence Decreases 304 | 15 263 26 Entered New Map 14 | . . 14 Time Decay 290 | 15 263 12 Squads Dispatched . | . . . Investigation . | . . . Extermination . | . . . Reinforcement . | . . . Assault . | . . . Garrison . | . . . Intercept . | . . . Searches Triggered . | . . . Construction Impeded . | . . . Haulers Reinforced . | . . . Active Scanning Responses . | . . . Cargo Convoy Interrupts . | . . . Stealth | -11 -10 -10 --------- Run | Yrd Mat Sub Distress Signals . | . . . Communications Jammed . | . . . Distress Signals . | . . . Times Spotted 16 | . 11 5 Peak Tracking Total 3 | . 3 3 Tactical Retreats . | . . . Traps | -11 -10 -10 ------- Run | Yrd Mat Sub Traps Triggered . | . . . Indirectly . | . . . Trap Hack Attempts . | . . . Triggered . | . . . Disarmed . | . . . Reprogrammed . | . . . Reused . | . . . Traps Extracted . | . . . Installed . | . . . Triggered . | . . . Machines | -11 -10 -10 ---------- Run | Yrd Mat Sub Machines Disabled 2 | . 2 . Max in Single Turn 1 | . 1 . Machines Repaired . | . . . Machines Dismantled . | . . . Machines Sabotaged . | . . . Overloaded Fab Kills . | . . . Hacking | -11 -10 -10 --------- Run | Yrd Mat Sub Machines Accessed 3 | . 3 . Terminals 3 | . 3 . Fabricators . | . . . Repair Stations . | . . . Recycling Units . | . . . Scanalyzers . | . . . Garrison Access . | . . . Total Hacks 7 | . 7 . Successful 1 | . 1 . Failed 6 | . 6 . Catastrophic . | . . . Database Lockouts . | . . . Manual 4 | . 4 . Terminals 7 | . 7 . Fabricators . | . . . Repair Stations . | . . . Recycling Units . | . . . Scanalyzers . | . . . Garrison Access . | . . . Terminal Hacks 1 | . 1 . Robot Analysis 1 | . 1 . Fabricator Hacks . | . . . Repair Station Hacks . | . . . Recycling Unit Hacks . | . . . Scanalyzer . | . . . Garrison Access Hacks . | . . . Unauthorized Hacks . | . . . Terminals . | . . . Fabricators . | . . . Repair Stations . | . . . Recycling Units . | . . . Scanalyzers . | . . . Garrison Access . | . . . Data Cores Recovered . | . . . Used . | . . . Hacking Detections 3 | . 3 . Full Trace Events . | . . . Feedback Events . | . . . Feedback Blocked . | . . . Robot Schematics Acquired . | . . . Robots Built . | . . . Authchips . | . . . Time . | . . . Total Robot Build Rating . | . . . Part Schematics Acquired . | . . . Parts Built . | . . . Authchips . | . . . Time . | . . . Total Part Build Rating . | . . . Part Studies Acquired . | . . . Parts Repaired . | . . . Time . | . . . Parts Recycled . | . . . Recycled Matter . | . . . Retrieved Matter . | . . . Retrieved Components . | . . . Parts Scanalyzed . | . . . Part Schematics Acquired . | . . . Parts Damaged . | . . . Bothacking | -11 -10 -10 ------------ Run | Yrd Mat Sub Used RIF Installer . | . . . Robots Hacked . | . . . Non-combat . | . . . Combat . | . . . Robot Hacks Applied . | . . . Relay Couplers Released . | . . . Fabnet Peak Effective % . | . . . Robots Rewired . | . . . Allies Hacked . | . . . Hacks Repelled . | . . . Allies | -11 -10 -10 -------- Run | Yrd Mat Sub Total Allies . | . . . Largest Group . | . . . Highest-Rated Group . | . . . Highest-Rated Ally . | . . . Total Orders . | . . . Ally Attacks . | . . . Total Damage . | . . . Kills . | . . . Allies Corrupted . | . . . Allies Melted . | . . . Intel | -11 -10 -10 ------- Run | Yrd Mat Sub Active Infowar (turns) 1581 | 12 833 736 Seismic 1581 | 12 833 736 Robot Analysis Total 1 | . 1 . Derelict Logs Recovered 1 | . . 1 Drone Launches . | . . . Drone Recoveries . | . . . Exploration | -11 -10 -10 ------------- Run | Yrd Mat Sub Turns Passed 1656 | 87 833 736 Spaces Moved 803 | 35 361 407 Core 7 | . . 7 Treads 796 | 35 361 400 Legs . | . . . Wheels . | . . . Hover . | . . . Flight . | . . . Fastest Speed 160 | 160 160 160 Average Speed 161 | 160 160 162 Slowest Speed 350 | 160 160 350 Overloaded Moves . | . . . Propulsion Burnouts . | . . . Robots Hopped . | . . . Potential Cave-ins . | . . . Cave-ins Triggered . | . . . Exploration Rate (%) 29 | 4 50 33 Regions Visited 2 Branch Regions 1 Pre-discovered Areas . | . . . Known Exits Taken . | . . . Unknown Exits Taken 2 | 1 1 . Scrap Searched . | . . . Spaces Dug 3 | . 3 . Terrain Destroyed 72 | . 30 42 Melee . | . . . Projectile 3 | . 3 . AOE 69 | . 27 42 Terrain Rammed . | . . . Walls Destroyed . | . . . Machines Disabled . | . . . Actions | -11 -10 -10 --------- Run | Yrd Mat Sub Total 1046 | 48 556 442 Wait 122 | . 118 4 Move 801 | 34 360 407 Hop . | . . . Pick Up 11 | 1 10 . Fast Attach 2 | 1 . 1 Attach 3 | . . 3 Detach . | . . . Swap 13 | 3 9 1 Drop 10 | . 10 . Fire 84 | 9 49 26 Melee . | . . . Ram . | . . . Kick . | . . . Crush . | . . . Escape Stasis . | . . . Rewire . | . . . Trap . | . . . Miscellaneous . | . . . Route ------- -11/Scrapyard -10/Materials (discovered 2 exits: [*Mat] / [*Sub]) -10/Subcaves History --------- Turn | Location | Event 6 | -11/Scrapyard | Discovered new exit (range 3) 88 | -11/Scrapyard | Entered Materials 308 | -10/Materials | Build established: Mutant 686 | -10/Materials | Discovered new exit (range 15) 899 | -10/Materials | Discovered new exit (range 6) 921 | -10/Materials | Entered Subcaves 922 | -10/Subcaves | Approached by a straggling Scientist 1072 | -10/Subcaves | Learned 2 Materials zone layouts 1539 | -10/Subcaves | Ambushed by Subdweller buried in earth 1620 | -10/Subcaves | Core integrity fell below 50% 1638 | -10/Subcaves | Core integrity fell below 20% 1657 | -10/Subcaves | Destroyed by OO-CBK(R) with Subdweller Machine Gun Last Messages --------------- 01592_ Subatomizers dissect the Lgt. Ion Engine. 01597_ The unstable cave ceiling collapses. 01598_ 8U-B8O(R): "SUBHATE!" 01602_ The unstable cave ceiling collapses. 01606_ Subatomizers dissect the Lgt. Ion Engine, destroying it. 01606_ The unstable cave ceiling collapses. 01615_ Assault Rifle destroyed. 01615_ Lgt. Treads destroyed. 01618_ Subatomizers dissect the Sub. Monowheel. 01630_ Sub. Laser melted. 01630_ Disposable Heat Sink melted. 01630_ UZ-OQN(R) destroyed. 01631_ Subatomizers dissect the Sub. Monowheel. 01631_ The unstable cave ceiling collapses. 01635_ Lgt. Treads destroyed. 01635_ Acquired 39 matter. 01643_ The unstable cave ceiling collapses. 01653_ Acquired Ripper. 01655_ Ion Engine destroyed. Map ----- +----------------------------------------------------+ | ???????????????????????????????????????????# # | | ???????????????????????????????????????????# | | ??????????????????????????????????????????## | | ???????????????####????????????????######## # | | ?????????????### ???????######### ### | | ????????????? ?###### "## ## ##?? | | ???????????? ## # "" ##??? | | ???????????? "" ## ##???? | | ?????????????# ""# # #????? | | ????????????## # ## ## ### #????? | | ????????????# ## ## ### ##???? | | ?????????????? ## !!* #???? | | ????????????? ## & &% " #???? | | ??????????????? # = # " ##???? | | ?????????????????# # " ## ### "" ##????? | | ?????????????????# """ #####" " #?????? | | ?????????????????# """ ####???## " ""#?????? | | ?????????????????## " ###????????# " ????? | | ???????????## ??# # ## #?????????### ##?? | | ??????????? ##??##?# #???????????# # | | ????????????? ????#& # #????????????# & | | ???????????????# ??## &## ?????????????# | | ????????????????# ## & #?? #???????????### ## | | ?????????????????# #??? #?????????????#??? | | ?????????????????## R#???? #????????????????? | | ??????????????????# @##???? ????????????????? | | ??????????????????# #?????#???????????????? | | ??????????????????##### #????????????????????? | | ??????????????????????### ???????????????????? | | ????????????????????????# ##??????????????????? | | ???????????????????????? ###???????????????????? | | ???????????????????????? ?????????????????????? | | ???????????????????????# ?????????????????????? | | ???????????????????????### #????????????????????? | | ????????????????????????? ????????????????????? | | ????????????????????????? #????????????????????? | | ????????????????????????? ##????????????????????? | | ????????????????????????? ?????????????????????? | | ????????????????????????? ?????????????????????? | | ????????????????????????? #?????????????????????? | | ????????????????????????? ??????????????????????? | | ????????????????????????? ??????????????????????? | | ?????????????????????????????????????????????????? | | ?????????????????????????????????????????????????? | | ?????????????????????????????????????????????????? | | ?????????????????????????????????????????????????? | | ?????????????????????????????????????????????????? | | ?????????????????????????????????????????????????? | | ?????????????????????????????????????????????????? | | ?????????????????????????????????????????????????? | +----------------------------------------------------+ Best States ------------- Heat Dissipation 25 Energy Generation 10 Energy Capacity 250 Matter Stores 300 Matter Capacity 300 Sight Range 16 Terrain Scan Density 10 Evasion (%) 40 Recoil Reduction 2 Item Schematics ----------------- None Robot Schematics ------------------ None Fabricated ------------ Nothing Repaired ---------- Nothing Studied --------- None Alien Tech Used ----------------- None Achievements -------------- None Challenges ------------ None Game ------ Seed VortexLightpackKit Manual? 0 Play Time 00:12:13 Cumulative 58.4 hours Start 2026.04.25 @ 21:27:39 End 2026.04.25 @ 21:36:52 Sessions 1 Manual Loads 0 Difficulty Rogue Special Mode None Game No. 74 Rogue 74 Adventurer 0 Explorer 0 Win Type - Total 1 Types 1/0/0/0/0/0/0/0/0/0 Lore% 32 Gallery% 35 Achievement% 29 Wizard Run 0 Options --------- Layout 2 ASCII 0 Keyboard 1 Movement Numpad Keybinds 1 Fullscreen 1 Font 24/Smallcaps Map View 50x44 Zoom Use 0% Tactical HUD 1 Map Filters NONE Filters NONE Steam 1 RUN: 2721d495-3efc-44d9-ba59-b54b74420a56